bitfinex-derivatives/quotes_BTCF0:USTF0_20251011
["timestamp","ask_amount","ask_price","bid_price","bid_amount"]
[1760169088888,1.39817292,110330.0,110320.0,0.01452]
[1760169089081,1.42251314,110330.0,110320.0,0.01452]
[1760169089281,1.42251314,110330.0,110320.0,0.01352]
[1760169089891,0.90514022,110330.0,110320.0,0.01352]
[1760169090185,0.90514022,110330.0,110320.0,0.8648747]
[1760169090186,0.52,110330.0,110320.0,0.8648747]
[1760169090487,0.52,110330.0,110320.0,1.29170112]
[1760169090686,0.52,110330.0,110320.0,0.8648747]
[1760169090985,0.52,110330.0,110320.0,0.4648747]
[1760169091383,0.52,110330.0,110320.0,1.29170112]
[1760169091889,0.52,110330.0,110320.0,1.29270112]
[1760169092091,0.3608,110360.0,110350.0,0.01292]
[1760169092291,0.84514506,110360.0,110350.0,0.1034501]
[1760169092492,0.84514506,110360.0,110350.0,0.01292]
[1760169093089,0.93566696,110360.0,110350.0,0.01292]
[1760169093481,1.36249338,110360.0,110350.0,0.01292]
[1760169094087,0.93566696,110360.0,110350.0,0.01292]
[1760169094387,0.84614506,110360.0,110350.0,0.5034501]
[1760169094587,0.48534506,110360.0,110350.0,1.20054642]
[1760169094890,0.84614506,110360.0,110350.0,0.01292]
[1760169095193,1.27297148,110360.0,110350.0,0.01292]
[1760169095381,0.93666696,110360.0,110350.0,0.01292]
[1760169095882,1.36349338,110360.0,110350.0,0.01292]
[1760169096989,0.93666696,110360.0,110350.0,0.01292]
[1760169097191,1.36349338,110360.0,110350.0,0.01292]
[1760169099193,0.93666696,110360.0,110350.0,0.01292]
[1760169099395,1.36349338,110360.0,110350.0,0.01292]
[1760169100092,1.27297148,110360.0,110350.0,0.03392]
[1760169100293,1.36349338,110360.0,110350.0,0.03392]
[1760169100595,0.84614506,110360.0,110350.0,0.5244501]
[1760169100794,0.48534506,110360.0,110350.0,0.5244501]
[1760169101389,0.48445422,110360.0,110350.0,0.5244501]
[1760169101790,0.461,110360.0,110350.0,0.5244501]
[1760169102089,0.84683192,110360.0,110350.0,0.03392]
[1760169102292,1.36417779,110360.0,110350.0,0.01292]
[1760169102592,1.76417779,110360.0,110350.0,0.01292]
[1760169102892,1.36417779,110360.0,110350.0,0.01292]
[1760169103189,1.76417779,110360.0,110350.0,0.01292]
[1760169103795,0.93735137,110360.0,110350.0,0.01292]
[1760169103996,1.36417779,110360.0,110350.0,0.01292]
[1760169104195,1.36317779,110360.0,110350.0,0.01292]
[1760169104496,1.36517779,110360.0,110350.0,0.01292]
[1760169104897,1.76517779,110360.0,110350.0,0.01292]
[1760169105096,1.76617779,110360.0,110350.0,0.01292]
[1760169105400,1.36517779,110360.0,110350.0,0.01292]
[1760169105692,1.36617779,110360.0,110350.0,0.01292]
[1760169106091,0.82537755,110360.0,110350.0,0.5253601]
[1760169106792,0.82437755,110360.0,110350.0,0.5253601]
[1760169106987,0.46357755,110360.0,110350.0,0.5253601]
[1760169107690,0.3608,110390.0,110380.0,0.1043055]
[1760169107892,0.45,110390.0,110380.0,0.0138]
[1760169108194,0.81237712,110390.0,110380.0,0.1043055]
[1760169108793,0.81237712,110390.0,110380.0,0.5043055]
[1760169108988,0.45157712,110390.0,110380.0,1.29193192]
[1760169109192,0.42406559,110390.0,110380.0,0.8651055]
[1760169110098,0.42506559,110390.0,110380.0,0.8651055]
[1760169110599,0.42406559,110390.0,110380.0,1.29293192]
[1760169111297,0.42406559,110390.0,110380.0,0.89293192]
[1760169111499,0.42406559,110390.0,110380.0,0.4661055]
[1760169112000,0.3608,110400.0,110390.0,0.1042973]
[1760169112300,0.4508,110400.0,110390.0,0.1042973]
[1760169112495,0.45237697,110400.0,110390.0,0.1042973]
[1760169112802,0.45237697,110400.0,110390.0,0.0138]
[1760169112803,0.89286607,110400.0,110390.0,0.0138]
[1760169113300,0.44157697,110400.0,110390.0,0.5270073]
[1760169113492,0.27157697,110400.0,110390.0,0.5270073]
[1760169113691,0.00157697,110400.0,110390.0,0.5270073]
[1760169113897,0.31157697,110400.0,110390.0,0.5270073]
[1760169114095,0.03157697,110400.0,110390.0,0.5270073]
[1760169114497,0.38157697,110400.0,110390.0,0.5270073]
[1760169114903,0.38157697,110400.0,110390.0,0.8878073]
[1760169115105,0.38157697,110400.0,110390.0,1.25080708]
[1760169115306,0.38,110400.0,110390.0,1.25080708]
[1760169115801,0.4512604,110440.0,110430.0,0.0138]
[1760169115995,0.95427128,110440.0,110430.0,0.0138]
[1760169116195,0.95584783,110440.0,110430.0,0.0138]
[1760169116600,0.86538743,110440.0,110430.0,0.03651]
[1760169116803,0.95584373,110440.0,110430.0,0.03651]
[1760169117004,0.95584373,110440.0,110430.0,0.0138]
[1760169117602,0.95684373,110440.0,110430.0,0.0138]
[1760169118605,1.71984351,110440.0,110430.0,0.0138]
[1760169118798,1.31984351,110440.0,110430.0,0.0138]
[1760169119001,1.35684373,110440.0,110430.0,0.0138]
[1760169119303,0.86638743,110440.0,110430.0,0.03651]
[1760169119498,0.50458743,110440.0,110430.0,0.5269745]
[1760169119697,0.50458743,110440.0,110430.0,0.03651]
[1760169119903,0.95584373,110440.0,110430.0,0.0138]
[1760169120204,0.50458743,110440.0,110430.0,0.43651]
[1760169120400,0.09558743,110440.0,110430.0,0.8877745]
[1760169120605,0.02558743,110440.0,110430.0,0.03651]
[1760169120808,0.91684373,110440.0,110430.0,0.0138]
[1760169121007,1.67984351,110440.0,110430.0,0.0138]
[1760169121202,1.31584373,110440.0,110430.0,0.0138]
[1760169121408,1.67884351,110440.0,110430.0,0.0138]
[1760169122204,0.91584373,110440.0,110430.0,0.0138]
[1760169122803,1.31584373,110440.0,110430.0,0.0138]
[1760169123013,1.31684373,110440.0,110430.0,0.0138]
[1760169123509,1.31784373,110440.0,110430.0,0.0138]
[1760169123713,1.31684373,110440.0,110430.0,0.0138]
[1760169124109,0.91684373,110440.0,110430.0,0.0138]
[1760169124410,1.31684373,110440.0,110430.0,0.0138]
[1760169127523,0.91684373,110440.0,110430.0,0.0138]
[1760169127712,1.31684373,110440.0,110430.0,0.0138]
[1760169128823,1.67984351,110440.0,110430.0,0.0138]
[1760169133532,0.82638743,110440.0,110430.0,0.1269745]
[1760169133823,0.82638743,110440.0,110430.0,0.0138]
[1760169133824,0.91684373,110440.0,110430.0,0.0138]
[1760169135919,0.91684373,110440.0,110430.0,0.03651]
[1760169136624,0.91684373,110440.0,110430.0,0.0138]
[1760169137424,0.94833279,110440.0,110430.0,0.0138]
[1760169138024,1.34833279,110440.0,110430.0,0.0138]
[1760169138326,1.36387603,110440.0,110430.0,0.0138]
[1760169138915,0.94867069,110440.0,110430.0,0.0138]
[1760169139116,1.31167048,110440.0,110430.0,0.0138]
[1760169142021,1.71167048,110440.0,110430.0,0.0138]
[1760169143426,1.67984351,110440.0,110430.0,0.0138]
[1760169144026,1.71169056,110440.0,110430.0,0.0138]
[1760169145529,0.94869078,110440.0,110430.0,0.0138]
[1760169146233,0.94869078,110440.0,110430.0,0.1042645]
[1760169146532,1.31169056,110440.0,110430.0,0.1042645]
[1760169147227,0.82638743,110440.0,110430.0,0.5252845]
[1760169147427,0.94869078,110440.0,110430.0,0.0138]
[1760169149033,0.91684373,110440.0,110430.0,0.0138]
[1760169149230,1.27984351,110440.0,110430.0,0.0138]
[1760169151027,0.82638743,110440.0,110430.0,0.03482]
[1760169151228,0.38638743,110440.0,110430.0,0.43482]
[1760169151537,0.02401088,110440.0,110430.0,1.24908428]
[1760169152823,0.00157624,110470.0,110460.0,0.01387]
[1760169153027,0.00157624,110470.0,110460.0,0.03489]
[1760169154624,0.00357624,110470.0,110460.0,0.03489]
[1760169155030,0.00357624,110470.0,110460.0,0.1253299]
[1760169156433,0.00357624,110470.0,110460.0,0.8861299]
[1760169156628,0.002,110470.0,110460.0,0.8861299]
[1760169156840,0.03184705,110490.0,110480.0,0.1253135]
[1760169157031,0.08184705,110490.0,110480.0,0.84911328]
[1760169157234,0.05,110490.0,110480.0,1.24911328]
[1760169157627,0.39422266,110500.0,110490.0,0.1253054]
[1760169157931,0.74422266,110500.0,110490.0,0.1253054]
[1760169158238,0.38342266,110500.0,110490.0,0.1253054]
[1760169158435,0.38342266,110500.0,110490.0,0.5253054]
[1760169158632,0.00157561,110500.0,110490.0,0.5253054]
[1760169158837,0.03342266,110500.0,110490.0,0.5253054]
[1760169159035,0.00157561,110500.0,110490.0,0.8861054]
[1760169159234,0.03184705,110510.0,110500.0,0.1042772]
[1760169159435,0.03184705,110510.0,110500.0,1.24909698]
[1760169159638,0.0470323,110520.0,110510.0,0.124679]
[1760169159939,0.04860752,110540.0,110530.0,0.1246715]
[1760169160436,0.04860752,110540.0,110530.0,0.5246715]
[1760169160633,0.04860752,110540.0,110530.0,0.1246715]
[1760169160839,0.04860752,110540.0,110530.0,0.03428]
[1760169161139,0.40940752,110540.0,110530.0,0.5246715]
[1760169161336,0.00157522,110540.0,110530.0,0.8854715]
[1760169161733,0.0470323,110550.0,110540.0,0.1246634]
[1760169162042,0.0470323,110550.0,110540.0,0.48766318]
[1760169162236,0.0470323,110550.0,110540.0,0.88766318]
[1760169162535,0.0470323,110550.0,110540.0,0.84846318]
[1760169163036,0.0470323,110550.0,110540.0,0.03428]
[1760169163234,0.0670323,110550.0,110540.0,0.03428]
[1760169163434,0.0470323,110550.0,110540.0,0.1246634]
[1760169163638,0.0470323,110550.0,110540.0,0.8854634]
[1760169163839,0.0470323,110550.0,110540.0,0.5246634]
[1760169164136,0.0470323,110550.0,110540.0,0.03428]
[1760169164342,0.0470323,110550.0,110540.0,0.5246634]
[1760169164637,0.0470323,110550.0,110540.0,0.8854634]
[1760169165641,0.40940711,110560.0,110550.0,0.1251452]
[1760169165840,0.42917124,110560.0,110550.0,0.1251452]
[1760169166039,0.42917124,110560.0,110550.0,0.03477]
[1760169167346,0.36237481,110560.0,110550.0,0.03477]
[1760169167642,0.36237481,110560.0,110550.0,0.1251452]
[1760169168741,0.36237481,110560.0,110550.0,0.5251452]
[1760169170044,0.36237481,110560.0,110550.0,0.03477]
[1760169171843,1.29237481,110560.0,110550.0,0.01289]
[1760169172145,1.80780989,110560.0,110550.0,0.01289]
[1760169172641,0.45274181,110560.0,110550.0,0.01289]
[1760169172848,0.36237481,110560.0,110550.0,0.03477]
[1760169173040,1.34274181,110560.0,110550.0,0.01289]
[1760169173348,0.94274181,110560.0,110550.0,0.01289]
[1760169173645,0.45274181,110560.0,110550.0,0.01289]
[1760169173844,1.32780989,110560.0,110550.0,0.01289]
[1760169174044,1.75780989,110560.0,110550.0,0.01289]
[1760169174938,1.75780989,110560.0,110540.0,0.01281]
[1760169174939,0.0903752,110550.0,110540.0,0.01281]
[1760169175142,1.34624328,110550.0,110540.0,0.01281]
[1760169175341,1.74624328,110550.0,110540.0,0.01281]
[1760169176642,1.3211752,110550.0,110540.0,0.01281]
[1760169176846,1.74624328,110550.0,110540.0,0.01281]
[1760169177042,0.4511834,110540.0,110520.0,0.01281]
[1760169177245,0.78586808,110530.0,110520.0,0.01281]
[1760169177448,1.73625968,110530.0,110520.0,0.01281]
[1760169178540,0.0904079,110510.0,110500.0,0.01289]
[1760169178740,1.76707598,110510.0,110500.0,0.01289]
[1760169179751,0.7216,110510.0,110500.0,0.03477]
[1760169180248,0.3608,110520.0,110510.0,0.1032951]
[1760169180452,0.3608,110520.0,110510.0,0.03477]
[1760169180655,0.3608,110520.0,110510.0,0.5251779]
[1760169180948,0.9311997,110520.0,110510.0,0.01289]
[1760169181256,1.78626778,110520.0,110510.0,0.01289]
[1760169182146,1.38626778,110520.0,110510.0,0.01289]
[1760169183649,1.78626778,110520.0,110510.0,0.01289]
[1760169184148,1.78826778,110520.0,110510.0,0.01289]
[1760169184645,0.0904243,110490.0,110480.0,0.01298168]
[1760169184850,0.0904325,110480.0,110470.0,0.01289]
[1760169185046,1.39630058,110480.0,110470.0,0.01289]
[1760169185249,0.0904407,110470.0,110460.0,0.01289]
[1760169185453,1.33630878,110470.0,110460.0,0.01289]
[1760169185652,1.73630878,110470.0,110460.0,0.01289]
[1760169186756,1.73530878,110470.0,110460.0,0.01289]
[1760169187352,1.73630878,110470.0,110460.0,0.01289]
[1760169187551,1.73730878,110470.0,110460.0,0.01289]
[1760169189253,1.73530878,110470.0,110460.0,0.01289]
[1760169189460,1.73730878,110470.0,110460.0,0.01289]
[1760169189655,0.0904488,110460.0,110450.0,0.01289]
[1760169189958,1.38631688,110460.0,110450.0,0.01289]
[1760169190562,1.78631688,110460.0,110450.0,0.01289]
[1760169190963,0.090457,110450.0,110440.0,0.06152574]
[1760169191164,0.3608,110450.0,110440.0,0.06152574]
[1760169191468,0.911257,110450.0,110440.0,0.06152574]
[1760169191655,0.471257,110450.0,110440.0,0.06152574]
[1760169192060,0.951257,110450.0,110440.0,0.06152574]
[1760169192265,0.471257,110450.0,110440.0,0.06152574]
[1760169192465,0.451257,110450.0,110440.0,0.06152574]
[1760169192766,0.3608,110450.0,110440.0,0.43477]
[1760169192962,0.471257,110450.0,110440.0,0.06125045]
[1760169193262,1.34632508,110450.0,110440.0,0.01289]
[1760169193467,1.40632508,110450.0,110440.0,0.01289]
[1760169193964,1.40632508,110450.0,110440.0,0.06125045]
[1760169194167,1.80632508,110450.0,110440.0,0.06125045]
[1760169194466,1.80632508,110450.0,110440.0,0.01289]
[1760169195569,0.0904652,110440.0,110430.0,0.01316]
[1760169195764,1.73633328,110440.0,110430.0,0.01316]
[1760169195963,0.0904734,110430.0,110420.0,0.02625045]
[1760169196264,1.80634148,110430.0,110420.0,0.02625045]
[1760169196868,1.80634148,110430.0,110420.0,0.01289]
[1760169196869,1.40634148,110430.0,110420.0,0.01289]
[1760169198570,1.80634148,110430.0,110420.0,0.01289]
[1760169198771,0.0904816,110420.0,110410.0,0.01289]
[1760169198967,0.0904898,110410.0,110400.0,0.01316]
[1760169199272,0.090498,110400.0,110390.0,0.07796655]
[1760169199470,1.41636608,110400.0,110390.0,0.01316]
[1760169200469,1.41536608,110400.0,110390.0,0.01316]
[1760169200772,1.41546451,110400.0,110390.0,0.07796655]
[1760169200974,0.96596651,110400.0,110390.0,0.07796655]
[1760169201167,0.96596651,110400.0,110390.0,0.40916]
[1760169201168,0.95139643,110400.0,110390.0,0.40916]
[1760169201768,0.36089843,110400.0,110390.0,0.43244]
[1760169202074,0.36089843,110400.0,110390.0,0.51297771]
[1760169202373,0.84089843,110400.0,110390.0,0.51297771]
[1760169202573,0.36089843,110400.0,110390.0,0.51297771]
[1760169202872,0.36089843,110400.0,110390.0,0.43244]
[1760169204168,0.36089843,110400.0,110390.0,0.40916]
[1760169204471,0.45139643,110400.0,110390.0,0.00916]
[1760169204672,0.87089843,110400.0,110390.0,0.00916]
[1760169204868,0.36089843,110400.0,110390.0,0.43244]
[1760169205072,9.843e-05,110400.0,110390.0,0.87377771]
[1760169205571,9.843e-05,110400.0,110390.0,0.79324]
[1760169205771,9.843e-05,110400.0,110390.0,1.30881428]
[1760169205969,1.014e-05,110400.0,110390.0,1.30881428]
[1760169206168,0.3608,110440.0,110430.0,0.03644]
[1760169206369,0.3608,110440.0,110430.0,0.10119953]
[1760169206568,0.87632988,110450.0,110440.0,0.01316]
[1760169206769,1.3020618,110450.0,110440.0,0.01316]
[1760169207366,0.7216,110450.0,110440.0,0.43644]
[1760169207572,0.7216,110450.0,110440.0,0.47791953]
[1760169207768,0.090449,110460.0,110440.0,0.47791953]
[1760169207769,0.3608,110460.0,110450.0,0.01316]
[1760169207964,0.3608,110460.0,110450.0,0.41316]
[1760169208273,0.42506808,110480.0,110470.0,0.01316]
[1760169208274,0.3608,110480.0,110470.0,0.01316]
[1760169208465,1.3220325,110480.0,110470.0,0.01316]
[1760169208669,0.8320325,110480.0,110470.0,0.01316]
[1760169208872,1.2616,110480.0,110470.0,0.41316]
[1760169209072,0.3608,110480.0,110470.0,0.41316]
[1760169209568,0.4512325,110480.0,110470.0,0.01316]
[1760169209772,0.9912325,110480.0,110470.0,0.01316]
[1760169209968,0.9922325,110480.0,110470.0,0.41316]
[1760169210167,0.3618,110480.0,110470.0,0.41316]
[1760169210364,0.4512243,110490.0,110480.0,0.01316]
[1760169210570,0.5312243,110490.0,110480.0,0.01316]
[1760169210771,0.3608,110490.0,110480.0,0.41316]
[1760169211074,0.3608,110500.0,110490.0,0.01316]
[1760169211272,1.3020161,110500.0,110490.0,0.01316]
[1760169211577,1.1816,110500.0,110490.0,0.01316]
[1760169211869,1.2820161,110500.0,110490.0,0.01316]
[1760169212076,1.1916,110500.0,110490.0,0.41316]
[1760169212270,0.7216,110500.0,110490.0,0.41316]
[1760169212776,0.7216,110500.0,110490.0,0.43644]
[1760169213169,0.3608,110500.0,110490.0,0.43644]
[1760169213672,0.8808,110500.0,110490.0,0.43644]
[1760169213872,0.3608,110500.0,110490.0,0.43644]
[1760169214078,0.3608,110520.0,110510.0,0.03644]
[1760169214277,0.8708,110520.0,110510.0,0.03644]
[1760169214477,0.8708,110520.0,110510.0,0.43644]
[1760169214676,0.8908,110520.0,110510.0,0.03644]
[1760169214971,1.40626778,110520.0,110510.0,0.01316]
[1760169215166,0.4511997,110520.0,110510.0,0.01316]
[1760169215366,0.5018,110520.0,110510.0,0.01316]
[1760169215572,0.9321997,110520.0,110510.0,0.01316]
[1760169215772,0.4308,110520.0,110510.0,0.01316]
[1760169215972,0.07,110520.0,110510.0,0.03644]
[1760169216172,0.07,110520.0,110510.0,0.43644]
[1760169216373,0.3608,110540.0,110510.0,0.8876479]
[1760169216573,0.9011834,110540.0,110530.0,0.01316]
[1760169216876,0.8108,110540.0,110530.0,0.01316]
[1760169217081,0.3608,110550.0,110530.0,0.43644]
[1760169217276,0.3608,110550.0,110540.0,0.01316]
[1760169217476,0.8508,110550.0,110540.0,0.01316]
[1760169217677,0.4511752,110550.0,110540.0,0.01316]
[1760169217880,0.9411752,110550.0,110540.0,0.01316]
[1760169218176,0.9011752,110550.0,110540.0,0.01316]
[1760169218383,1.32624328,110550.0,110540.0,0.01316]
[1760169218780,0.8108,110550.0,110540.0,0.01316]
[1760169218978,1.32624328,110550.0,110540.0,0.01316]
[1760169219572,1.32724328,110550.0,110540.0,0.01316]
[1760169220174,0.9021752,110550.0,110540.0,0.01316]
[1760169221289,1.32624328,110550.0,110540.0,0.01316]
[1760169223185,1.72624328,110550.0,110540.0,0.01316]
[1760169223384,0.0903834,110540.0,110530.0,0.01316]
[1760169223584,1.31625148,110540.0,110530.0,0.01316]
[1760169223784,1.71625148,110540.0,110530.0,0.01316]
[1760169224390,0.0903916,110530.0,110520.0,0.01316]
[1760169224689,0.0903998,110520.0,110510.0,0.01316]
[1760169224886,0.87626788,110520.0,110510.0,0.01316]
[1760169225281,1.33626788,110520.0,110510.0,0.01316]
[1760169226392,1.73626788,110520.0,110510.0,0.01316]
[1760169227492,0.86311608,110510.0,110500.0,0.01307]
[1760169227692,1.34311608,110510.0,110500.0,0.01307]
[1760169227893,1.74311608,110510.0,110500.0,0.01307]
[1760169228392,0.4381461,110500.0,110490.0,0.01307]
[1760169228693,1.33321418,110500.0,110490.0,0.01307]
[1760169229293,0.4381461,110500.0,110490.0,0.01307]
[1760169229596,0.4381461,110500.0,110490.0,0.41307]
[1760169229791,0.86321418,110500.0,110490.0,0.41307]
[1760169229988,0.88321418,110500.0,110490.0,0.41307]
[1760169230190,1.32321418,110500.0,110490.0,0.41307]
[1760169230487,1.31321418,110500.0,110490.0,0.41307]
[1760169230687,0.9081461,110500.0,110490.0,0.41307]
[1760169230887,1.38321418,110500.0,110490.0,0.41307]
[1760169231093,0.4381461,110500.0,110490.0,0.41307]
[1760169231294,0.8881461,110500.0,110490.0,0.41307]
[1760169231494,0.9081461,110500.0,110490.0,0.41307]
[1760169231689,0.4381461,110500.0,110490.0,0.41307]
[1760169231894,0.9781461,110500.0,110490.0,0.41307]
[1760169232291,0.4381461,110500.0,110490.0,0.41307]
[1760169233490,0.34773,110500.0,110490.0,0.41307]
[1760169233696,0.4381461,110500.0,110490.0,0.43628]
[1760169234299,0.4381461,110500.0,110490.0,0.41307]
[1760169234499,0.4381461,110500.0,110490.0,0.01307]
[1760169235098,0.9681461,110500.0,110490.0,0.01307]
[1760169235289,0.4381461,110500.0,110490.0,0.41307]
[1760169236996,0.4381461,110500.0,110490.0,0.43628]
[1760169236997,0.4512161,110500.0,110490.0,0.43628]
[1760169237298,0.4512161,110500.0,110490.0,0.41307]
[1760169237690,0.9912161,110500.0,110490.0,0.41307]
[1760169237999,0.9112161,110500.0,110490.0,0.41307]
[1760169238193,0.4512161,110500.0,110490.0,0.41307]
[1760169238399,0.9312161,110500.0,110490.0,0.01307]
[1760169239301,0.4712161,110500.0,110490.0,0.01307]
[1760169239600,0.9712161,110500.0,110490.0,0.01307]
[1760169241297,1.3712161,110500.0,110490.0,0.01307]
[1760169241506,1.2812161,110500.0,110490.0,0.01307]
[1760169241802,0.4512161,110500.0,110490.0,0.01307]
[1760169241992,0.3608,110500.0,110490.0,0.43628]
[1760169242191,0.4512161,110500.0,110490.0,0.41307]
[1760169242400,0.4512161,110500.0,110490.0,0.01307]
[1760169242602,0.9412161,110500.0,110490.0,0.01307]
[1760169247607,0.4512161,110500.0,110490.0,0.01307]
[1760169247798,0.9212161,110500.0,110490.0,0.01307]
[1760169248201,0.9712161,110500.0,110490.0,0.01307]
[1760169248607,0.4512161,110500.0,110490.0,0.01307]
[1760169248807,0.9312161,110500.0,110490.0,0.01307]
[1760169249105,0.9212161,110500.0,110490.0,0.01307]
[1760169249906,1.3212161,110500.0,110490.0,0.01307]
[1760169250206,1.34274262,110500.0,110490.0,0.01307]
[1760169251100,0.4381544,110490.0,110480.0,0.01307]
[1760169251305,1.35516987,110490.0,110480.0,0.01307]
[1760169251498,0.99273991,110490.0,110480.0,0.01307]
[1760169251698,1.35516987,110490.0,110480.0,0.01307]
[1760169251904,0.84365436,110490.0,110480.0,0.01307]
[1760169252405,0.4822244,110490.0,110480.0,0.01307]
[1760169252607,0.4622244,110490.0,110480.0,0.03628]
[1760169252805,0.9122244,110490.0,110480.0,0.03628]
[1760169253509,0.4522244,110490.0,110480.0,0.43628]
[1760169253903,0.9222244,110490.0,110480.0,0.03628]
[1760169254098,0.4522244,110490.0,110480.0,0.41307]
[1760169254303,0.4522244,110490.0,110480.0,0.43628]
[1760169254504,0.9112244,110490.0,110480.0,0.43628]
[1760169254904,0.4512244,110490.0,110480.0,0.43628]
[1760169255109,0.9012244,110490.0,110480.0,0.43628]
[1760169255309,0.9312244,110490.0,110480.0,0.43628]
[1760169255610,0.4512244,110490.0,110480.0,0.43628]
[1760169257507,0.9512244,110490.0,110480.0,0.01307]
[1760169257705,0.4512244,110490.0,110480.0,0.43487]
[1760169258011,0.9812244,110490.0,110480.0,0.03487]
[1760169258213,0.8912244,110490.0,110480.0,0.03487]
[1760169258611,0.4512244,110490.0,110480.0,0.03487]
[1760169258816,0.4512244,110490.0,110480.0,0.43487]
[1760169259516,0.9912244,110490.0,110480.0,0.43487]
[1760169259717,0.9412244,110490.0,110480.0,0.43487]
[1760169260113,0.8912244,110490.0,110480.0,0.43487]
[1760169260314,0.4512244,110490.0,110480.0,0.43487]
[1760169260516,0.9312244,110490.0,110480.0,0.01307]
[1760169261213,1.29365436,110490.0,110480.0,0.01307]
[1760169261612,1.69365436,110490.0,110480.0,0.01307]
[1760169262718,1.71521635,110490.0,110480.0,0.01307]
[1760169262921,0.5412244,110490.0,110480.0,0.01307]
[1760169263117,0.58278626,110490.0,110480.0,0.01307]
[1760169263320,0.5612244,110490.0,110480.0,0.01307]
[1760169263619,0.4512244,110490.0,110480.0,0.01307]
[1760169263819,0.5412244,110490.0,110480.0,0.03487]
[1760169264021,0.5422244,110490.0,110480.0,0.03487]
[1760169264522,0.3608,110490.0,110480.0,0.03487]
[1760169264817,0.9612244,110490.0,110480.0,0.01307]
[1760169265020,0.9912244,110490.0,110480.0,0.01307]
[1760169265423,1.01277514,110490.0,110480.0,0.01307]
[1760169267418,1.41277514,110490.0,110480.0,0.01307]
[1760169267820,1.3912244,110490.0,110480.0,0.01307]
[1760169268122,1.3922244,110490.0,110480.0,0.01307]
[1760169269325,1.41379227,110490.0,110480.0,0.01307]
[1760169271522,1.77622223,110490.0,110480.0,0.01307]
[1760169272520,0.0904326,110480.0,110470.0,0.01281192]
[1760169272723,0.9612326,110480.0,110470.0,0.01271]
[1760169273223,0.98325331,110480.0,110470.0,0.01271]
[1760169273419,1.38325331,110480.0,110470.0,0.01271]
[1760169273720,0.98325331,110480.0,110470.0,0.01271]
[1760169274717,1.38325331,110480.0,110470.0,0.01271]
[1760169275824,1.74568327,110480.0,110470.0,0.01271]
[1760169276122,1.89578327,110480.0,110470.0,0.01271]
[1760169276323,1.74568327,110480.0,110470.0,0.01271]
[1760169278621,1.34568327,110480.0,110470.0,0.01271]
[1760169280123,1.34568327,110480.0,110450.0,0.01271]
[1760169280124,0.090449,110460.0,110450.0,0.01271]
[1760169280423,0.0904571,110450.0,110440.0,0.01356]
[1760169280721,0.0904653,110440.0,110430.0,0.01263]
[1760169280926,1.29369526,110440.0,110430.0,0.01263]
[1760169282224,1.69369526,110440.0,110430.0,0.01263]
[1760169282423,0.0904735,110430.0,110420.0,0.01263]
[1760169282629,0.9012735,110430.0,110420.0,0.01263]
[1760169283522,0.4512735,110430.0,110420.0,0.4345]
[1760169283830,1.32470346,110430.0,110420.0,0.01263]
[1760169284621,0.81470346,110430.0,110420.0,0.41263]
[1760169284828,0.3608,110430.0,110420.0,0.5249817]
[1760169285127,0.4512735,110430.0,110420.0,0.4345]
[1760169285727,0.3608,110440.0,110430.0,0.1265635]
[1760169285928,0.8108,110440.0,110430.0,0.1265635]
[1760169286129,0.8108,110440.0,110430.0,0.5265635]
[1760169286422,0.4512605,110450.0,110430.0,0.5265635]
[1760169286622,0.0904408,110470.0,110460.0,0.01395]
[1760169286623,0.4512444,110470.0,110460.0,0.01395]
[1760169286829,0.4512444,110470.0,110460.0,0.03609]
[1760169287226,0.3608,110470.0,110460.0,0.03609]
[1760169287429,0.3608,110480.0,110470.0,0.03609]
[1760169287927,0.3608,110500.0,110490.0,0.0904244]
[1760169288133,0.3608,110510.0,110500.0,0.03609]
[1760169288523,0.3608,110520.0,110500.0,0.5265062]
[1760169288728,0.38386711,110520.0,110510.0,0.43609]
[1760169288931,0.90386711,110520.0,110510.0,0.43609]
[1760169289130,0.99426701,110520.0,110510.0,0.43609]
[1760169290226,0.99426701,110520.0,110510.0,0.01395]
[1760169292725,0.69526701,110520.0,110510.0,0.01395]
[1760169292928,0.47526701,110520.0,110510.0,0.01395]
[1760169293131,0.53526701,110520.0,110510.0,0.01395]
[1760169293529,0.96081188,110520.0,110510.0,0.01395]
[1760169294332,1.79081188,110520.0,110510.0,0.01395]
[1760169294629,0.090408,110510.0,110500.0,0.01395]
[1760169294836,1.37981998,110510.0,110500.0,0.01395]
[1760169295135,1.77981998,110510.0,110500.0,0.01395]
[1760169295433,1.77981998,110510.0,110490.0,0.01395]
[1760169295434,0.0904162,110500.0,110490.0,0.01395]
[1760169295634,0.0904244,110490.0,110480.0,0.01395]
[1760169295828,1.40676927,110490.0,110480.0,0.01395]
[1760169296436,0.0904326,110480.0,110470.0,0.01395]
[1760169296631,1.39677747,110480.0,110470.0,0.01395]
[1760169300328,0.5012326,110480.0,110470.0,0.41395]
[1760169300534,0.5012326,110480.0,110470.0,0.43609]
[1760169300535,0.4512326,110480.0,110470.0,0.43609]
[1760169300736,1.41677747,110480.0,110470.0,0.01395]
[1760169300932,0.4512326,110480.0,110470.0,0.43609]
[1760169302039,1.73677747,110480.0,110470.0,0.01395]
[1760169302242,1.33677747,110480.0,110470.0,0.01395]
[1760169303336,1.39677747,110480.0,110470.0,0.01395]
[1760169303532,0.87677747,110480.0,110470.0,0.01395]
[1760169303739,1.07677747,110480.0,110470.0,0.01395]
[1760169304031,0.6512326,110480.0,110470.0,0.41395]
[1760169304235,0.4512326,110480.0,110470.0,0.43609]
[1760169304441,0.9012326,110480.0,110470.0,0.41395]
[1760169304742,0.9512326,110480.0,110470.0,0.41395]
[1760169304942,0.8812326,110480.0,110470.0,0.01395]
[1760169305437,0.4512326,110480.0,110470.0,0.01395]
[1760169305642,0.8212326,110480.0,110470.0,0.01395]
[1760169305846,0.9612326,110480.0,110470.0,0.01395]
[1760169306046,1.38677747,110480.0,110470.0,0.01395]
[1760169306944,1.37677747,110480.0,110470.0,0.41395]
[1760169307244,0.94677747,110480.0,110470.0,0.41395]
[1760169307445,0.94677747,110480.0,110470.0,0.43609]
[1760169307644,0.8212326,110480.0,110470.0,0.43609]
[1760169308241,0.4512326,110480.0,110470.0,0.5265308]
[1760169308739,0.4512326,110480.0,110470.0,0.43609]
[1760169309540,0.4512326,110480.0,110470.0,0.5265308]
[1760169310045,0.4512326,110480.0,110470.0,0.43609]
[1760169310437,0.3608,110480.0,110470.0,0.5265308]